bitfinex/quotes_ETHUSD_20220112
["timestamp","ask_amount","ask_price","bid_price","bid_amount"]
[1642013277697,0.3,3372.2,3372.0,0.00170527]
[1642013278096,0.80864588,3372.2,3372.0,0.00170527]
[1642013278696,0.50864588,3372.2,3372.0,0.00170527]
[1642013278895,0.50864588,3372.2,3372.1,0.74119]
[1642013279108,0.50864588,3372.2,3372.1,5.23510882]
[1642013279303,0.50864588,3372.2,3372.1,2.42059228]
[1642013279504,0.50864588,3372.2,3372.1,3.42059228]
[1642013279701,0.50864588,3372.7,3372.1,3.42059228]
[1642013280101,0.50864588,3372.7,3372.4,0.74105]
[1642013281002,0.50864588,3372.9,3372.4,0.74105]
[1642013281470,0.50864588,3372.9,3372.5,0.425]
[1642013281471,0.00284212,3372.8,3372.5,0.425]
[1642013281655,0.00284212,3372.8,3372.6,0.74096]
[1642013281852,0.50864588,3372.9,3372.6,0.74096]
[1642013281853,0.50864588,3372.9,3372.7,4.125]
[1642013282151,0.00284212,3372.8,3372.7,4.125]
[1642013282553,0.00284212,3372.8,3372.7,0.425]
[1642013282755,0.00284212,3372.8,3372.7,1.90669]
[1642013283556,0.511488,3372.8,3372.7,1.90669]
[1642013283956,0.511488,3372.8,3372.7,5.10206348]
[1642013284162,0.511488,3372.8,3372.7,1.90669]
[1642013284163,2.82945214,3372.8,3372.7,1.90669]
[1642013287007,2.82945214,3372.8,3372.7,1.48169]
[1642013288012,2.32080626,3372.8,3372.7,1.48169]
[1642013289055,0.00284212,3372.8,3372.7,1.48169]
[1642013290457,5.85284212,3372.8,3372.7,1.48169]
[1642013290858,0.1184,3372.7,3372.5,0.74114]
[1642013291262,3.70170527,3372.6,3372.5,0.74114]
[1642013291861,3.82030527,3372.6,3372.3,1.48221]
[1642013292062,0.3,3372.5,3372.3,1.48221]
[1642013292259,3.8186,3372.4,3372.3,1.48221]
[1642013292701,6.08063273,3372.4,3372.3,1.48221]
[1642013293401,7.51103705,3372.4,3372.3,1.48221]
[1642013294710,7.51103705,3372.4,3372.1,0.00113684]
[1642013294711,1.48248,3372.3,3372.1,0.00113684]
[1642013295508,7.1686,3372.2,3372.1,0.00113684]
[1642013295713,0.7414,3372.1,3371.9,0.00227369]
[1642013296011,0.74139,3371.8,3371.2,0.00625266]
[1642013296450,5.1686,3372.0,3371.2,0.00625266]
[1642013296451,1.39799831,3371.3,3371.2,0.00625266]
[1642013296652,1.39799831,3371.3,3371.2,0.74141]
[1642013297053,1.39799831,3371.3,3371.2,0.00625266]
[1642013297453,3.66003104,3371.3,3371.1,0.00682108]
[1642013297852,3.66003104,3371.3,3371.2,0.74143]
[1642013298253,3.66003104,3371.3,3371.2,0.74768266]
[1642013298658,1.39799831,3371.3,3371.2,0.74768266]
[1642013301000,1.39799831,3371.3,3371.2,0.00625266]
[1642013301402,1.39799831,3371.3,3371.1,0.00682108]
[1642013301403,2.88105831,3371.3,3371.1,0.00682108]
[1642013301600,0.74155,3371.1,3370.6,0.0096632]
[1642013301802,0.74155,3371.1,3370.5,1.4426532]
[1642013302002,0.0022737,3371.0,3370.5,1.4426532]
[1642013302508,1.41456415,3370.6,3370.5,1.4426532]
[1642013306463,0.1186,3371.0,3370.5,1.4426532]
[1642013306860,0.00170527,3370.9,3370.5,1.4426532]
[1642013307061,0.1186,3371.0,3370.5,1.4426532]
[1642013307062,0.07030527,3371.0,3370.5,1.4426532]
[1642013307261,0.07030527,3371.0,3370.6,0.00170527]
[1642013307463,1.34234006,3370.9,3370.8,0.7415]
[1642013307714,2.08388006,3370.9,3370.6,0.00170527]
[1642013308712,2.08388006,3370.9,3370.4,0.00284211]
[1642013309813,2.08388006,3370.9,3370.7,0.74152]
[1642013312349,1.34234006,3370.9,3370.7,0.74152]
[1642013314053,1.64234006,3370.9,3370.7,0.74152]
[1642013314354,2.40968971,3370.8,3370.7,0.74152]
[1642013314754,2.40968971,3370.8,3370.7,0.74265684]
[1642013316801,2.40968971,3370.8,3370.7,0.64265684]
[1642013320559,2.40968971,3370.8,3370.7,4.20761357]
[1642013320751,2.40968971,3370.8,3370.7,1.06765684]
[1642013321151,2.40968971,3370.8,3370.7,3.86765684]
[1642013321555,2.40968971,3371.2,3370.7,3.86765684]
[1642013321952,2.40968971,3371.2,3370.7,1.06765684]
[1642013322554,3.89447848,3371.4,3370.7,1.06765684]
[1642013322805,3.89447848,3371.4,3371.1,0.74138]
[1642013323008,0.0022737,3371.3,3371.1,0.74138]
[1642013323408,0.00170527,3371.2,3371.1,0.74138]
[1642013326448,0.00170527,3371.2,3370.9,0.74148]
[1642013326649,0.12030527,3371.2,3370.9,0.74148]
[1642013326850,0.00113685,3371.1,3370.9,0.74148]
[1642013327049,2.4686,3371.0,3370.9,0.74148]
[1642013327650,0.1186,3371.0,3370.9,0.74148]
[1642013329257,2.52578686,3371.0,3370.9,0.74148]
[1642013330502,2.40718686,3371.0,3370.9,0.74148]
[1642013331704,5.42935093,3371.0,3370.7,0.00113684]
[1642013331903,1.9018,3370.9,3370.7,0.00113684]
[1642013332105,1.1602,3370.9,3370.4,0.00284211]
[1642013332301,0.4186,3370.9,3370.3,0.00341054]
[1642013332502,0.4186,3370.9,3370.4,1.48305]
[1642013332903,0.4186,3370.9,3370.5,0.00227369]
[1642013333104,3.14877686,3370.8,3370.5,0.00227369]
[1642013333304,3.14877686,3370.8,3370.5,0.74383369]
[1642013333305,1.52609842,3370.7,3370.5,0.74383369]
[1642013333504,2.26769842,3370.7,3370.5,0.74383369]
[1642013333967,0.3,3370.7,3370.5,0.74383369]
[1642013334369,2.40718686,3370.8,3370.6,0.1186]
[1642013334571,0.1186,3371.0,3370.7,0.74143]
[1642013334770,0.3,3370.8,3370.7,0.74256684]
[1642013334972,0.00113685,3371.1,3370.7,0.74256684]
[1642013335171,1.19218648,3370.8,3370.7,0.74256684]
[1642013335372,1.49218648,3370.8,3370.7,0.74256684]
[1642013336770,1.19218648,3370.8,3370.7,0.74256684]
[1642013338500,1.49218648,3370.8,3370.7,0.74256684]
[1642013340105,1.19218648,3370.8,3370.7,0.74256684]
[1642013340309,1.49218648,3370.8,3370.7,0.74256684]
[1642013340515,1.51167653,3371.0,3370.7,0.74256684]
[1642013341572,0.7415,3370.9,3370.7,0.74256684]
[1642013342569,1.48301,3370.9,3370.7,0.74256684]
[1642013342771,1.48301,3370.9,3370.7,3.74256684]
[1642013343372,2.68399378,3370.9,3370.7,3.74256684]
[1642013349660,1.48301,3370.9,3370.7,3.74256684]
[1642013350565,1.38192818,3370.8,3370.7,3.74256684]
[1642013350763,3.84753259,3370.8,3370.7,3.74256684]
[1642013351764,5.35920912,3370.8,3370.7,3.74256684]
[1642013352167,8.15131095,3370.8,3370.7,3.74256684]
[1642013353101,5.35920912,3370.8,3370.7,3.74256684]
[1642013354008,3.84753259,3370.8,3370.7,3.74256684]
[1642013357462,3.84753259,3370.8,3370.2,0.98647165]
[1642013357463,6.90516888,3370.7,3370.2,0.98647165]
[1642013357661,3.12509214,3370.6,3370.2,0.98647165]
[1642013357861,0.7416936,3370.5,3370.3,0.0022737]
[1642013358864,1.4833936,3370.5,3370.3,0.0022737]
[1642013359662,2.85872961,3370.4,3370.3,0.0022737]
[1642013360306,6.843408,3370.4,3370.3,0.0022737]
[1642013360705,3.98467839,3370.4,3370.3,0.0022737]
[1642013361304,2.46560441,3370.4,3370.3,0.0022737]
[1642013362511,2.46560441,3370.4,3370.2,0.93874535]
[1642013362709,8.74988098,3370.3,3370.0,25.0]
[1642013362906,0.7417845,3370.2,3370.0,25.0]
[1642013363106,0.7417845,3370.2,3370.1,0.00113684]
[1642013363979,3.79391893,3370.2,3370.1,0.00113684]
[1642013364180,6.8,3370.0,3369.1,0.1186]
[1642013364379,0.0121172,3369.3,3368.9,0.05005]
[1642013364579,0.0121172,3369.3,3369.2,0.00511581]
[1642013364779,0.1187,3369.7,3369.2,0.00511581]
[1642013364980,0.1187,3369.7,3369.3,0.1187]
[1642013365285,7.59137839,3370.2,3369.5,0.74166]
[1642013365480,7.59137839,3370.2,3369.6,0.0686]
[1642013365681,7.59137839,3370.2,3369.6,0.07144212]
[1642013365881,7.59137839,3370.2,3369.7,0.0022737]
[1642013365882,2.64143282,3370.1,3369.7,0.0022737]
[1642013366480,2.64143282,3370.1,3369.8,1.48322]
[1642013366881,2.64143282,3370.1,3369.9,0.00113685]
[1642013367082,3.6067,3370.2,3370.0,0.74166]
[1642013367281,1.51907398,3370.4,3370.0,0.74166]
[1642013367482,2.26073398,3370.4,3370.0,0.74166]
[1642013367716,0.00113684,3370.3,3370.0,0.74166]
[1642013374077,1.52021082,3370.3,3370.0,0.74166]
[1642013375224,0.7417,3370.2,3370.0,0.74166]
[1642013379156,0.00113684,3370.3,3370.0,0.74166]
[1642013380857,0.7416684,3370.2,3370.0,0.74166]
[1642013382262,2.54394891,3370.1,3370.0,0.74166]
[1642013389077,2.54394891,3370.1,3370.0,1.16666]
[1642013389276,0.00113684,3370.3,3370.1,2.75]
[1642013389477,0.00113684,3370.3,3370.2,1.16639]
[1642013389677,1.51907398,3370.4,3370.2,2.16639]
[1642013389876,2.27861097,3370.7,3370.2,2.46639]
[1642013390075,2.27861097,3370.7,3370.2,1.725]
[1642013390323,0.00170527,3370.6,3370.2,1.725]
[1642013390516,0.00170527,3370.6,3370.5,1.30663975]
[1642013390718,3.02370648,3370.9,3370.5,3.95569975]
[1642013390916,5.47372529,3371.2,3370.5,3.95569975]
[1642013391115,0.00284212,3370.8,3370.6,1.0]
[1642013391316,0.00284212,3370.8,3370.7,0.425]
[1642013391519,0.50877904,3371.1,3370.7,0.425]
[1642013391717,0.50877904,3371.1,3370.7,1.83716902]
[1642013391918,0.00397897,3371.0,3370.7,1.83716902]
[1642013392118,0.00397897,3371.0,3370.7,2.57849902]
[1642013392320,0.00341054,3370.9,3370.7,0.74133]
[1642013392521,0.86358054,3370.9,3370.7,0.74133]
[1642013392721,3.80284212,3370.8,3370.7,0.74133]
[1642013393019,0.00284212,3370.8,3370.7,0.74133]
[1642013393219,0.00284212,3370.8,3370.7,1.16633]
[1642013393421,0.50877904,3370.9,3370.8,3.35]
[1642013393620,0.50877904,3370.9,3370.8,8.1619304]
[1642013394063,2.27861097,3371.2,3370.8,8.1619304]
[1642013394064,2.27861097,3371.2,3370.9,2.71339775]
[1642013394260,2.27861097,3371.2,3371.0,0.425]
[1642013394461,0.00170527,3371.1,3371.0,1.425]
[1642013394863,0.00284212,3371.3,3371.0,2.16623]
[1642013395263,0.00227369,3371.2,3371.0,2.16623]
[1642013395661,0.00511581,3371.7,3371.0,2.16623]
[1642013396062,0.00454739,3371.6,3371.0,2.16623]
[1642013396462,0.00397897,3371.5,3371.0,2.16623]
[1642013396862,0.00341054,3371.4,3371.2,0.74125]
[1642013397065,0.00341054,3371.4,3371.3,0.425]
[1642013397264,0.1186,3371.8,3371.3,0.425]
[1642013397721,0.00511581,3371.7,3371.3,0.425]
[1642013397911,0.1186,3371.6,3371.3,0.425]
[1642013398110,0.12314739,3371.6,3371.4,1.48254]
[1642013398314,2.65397897,3371.5,3371.4,1.48254]
[1642013400426,5.55397897,3371.5,3371.4,1.48254]
[1642013400628,5.55397897,3371.5,3371.2,1.48266]
[1642013400629,6.41400897,3371.5,3371.2,1.48266]
[1642013400926,6.41400897,3371.5,3370.9,1.48282]
[1642013400927,0.12201054,3371.4,3370.9,1.48282]
[1642013401324,0.74430642,3371.3,3370.9,1.48282]
[1642013401773,0.74430642,3371.3,3370.7,1.48291]
[1642013401774,0.74377369,3371.2,3370.7,1.48291]
[1642013401975,0.1186,3371.1,3370.6,0.74156]
[1642013402171,0.12030527,3371.1,3370.6,0.74156]
[1642013402370,0.00113685,3371.0,3370.6,0.74156]
[1642013402571,0.1186,3370.9,3370.6,0.74156]
[1642013402872,0.4186,3370.9,3370.6,0.74156]
[1642013403072,0.1186,3370.9,3370.6,0.74156]
[1642013404275,0.4186,3370.9,3370.6,0.74156]
[1642013404676,0.1186,3370.9,3370.6,0.74156]
[1642013405314,0.741547,3370.8,3370.6,0.74156]
[1642013406318,1.041547,3370.8,3370.4,0.7416]
[1642013406517,0.7416024,3370.6,3370.4,0.7416]
[1642013406717,0.7416024,3370.6,3370.5,0.00170527]
[1642013409063,0.1186,3370.7,3370.5,0.00170527]
[1642013409263,0.1186,3370.7,3370.6,0.74155]
[1642013409670,0.1186,3370.7,3370.6,0.74268685]
[1642013409965,1.1601477,3370.8,3370.6,0.74268685]
[1642013410870,0.4186,3370.8,3370.6,0.74268685]
[1642013411168,0.3,3370.8,3370.6,0.74268685]
[1642013411372,0.1186,3370.9,3370.6,0.74268685]
[1642013411373,0.4186,3370.9,3370.6,0.74268685]
[1642013411569,0.3,3370.9,3370.6,0.74268685]
[1642013411973,0.7415347,3370.8,3370.6,0.74268685]
[1642013414818,0.3,3370.7,3370.6,0.74268685]
[1642013415717,0.7415347,3370.8,3370.6,0.74268685]
[1642013415913,0.3,3370.8,3370.6,0.74268685]
[1642013416113,0.74263235,3371.0,3370.6,0.74268685]
[1642013416962,0.74263235,3371.0,3370.6,1.96296662]
[1642013417364,0.3,3370.9,3370.6,0.74268685]
[1642013417564,0.7415356,3370.8,3370.6,0.74268685]
[1642013419666,0.6915356,3370.8,3370.6,0.74268685]
[1642013422319,7.7915356,3370.8,3370.1,1.48318]
[1642013422525,0.74167,3370.5,3369.8,3.1348]
[1642013422719,0.1186,3370.4,3370.2,0.00227369]
[1642013423121,0.1186,3370.4,3369.7,0.00511581]
[1642013423319,1.60206,3370.4,3369.5,1.50521562]
[1642013423518,1.60206,3370.4,3369.5,0.00625265]
[1642013423722,0.7417287,3369.9,3369.8,1.48332]
[1642013423976,1.8968287,3369.9,3369.5,0.00625265]
[1642013424181,1.8968287,3369.9,3369.0,0.8904661]
[1642013424182,10.11152112,3369.8,3369.0,0.8904661]
[1642013424378,8.31210046,3369.7,3369.6,0.00113685]
[1642013424578,13.9001387,3369.7,3369.6,0.00113685]
[1642013424779,0.7419752,3369.4,3369.0,0.00454739]
[1642013424978,1.16069,3369.3,3369.0,0.00454739]
[1642013425183,0.74198,3369.2,3369.0,0.00314739]
[1642013425378,0.1187,3369.1,3369.0,0.00314739]
[1642013427824,2.54436123,3369.1,3369.0,0.00314739]
[1642013430321,2.54436123,3369.7,3369.0,0.00314739]
[1642013430521,2.84436123,3369.7,3369.3,0.74181]
[1642013430720,0.1187,3369.6,3369.0,0.00314739]
[1642013430919,8.05025815,3369.5,3369.4,0.0008737]
[1642013431116,11.88465277,3369.5,3369.0,0.00314739]
[1642013431316,0.1187,3369.4,3369.0,0.00314739]
[1642013432575,3.28635133,3369.3,3369.0,0.00314739]
[1642013432774,0.1187,3369.2,3369.0,0.00314739]
[1642013433575,2.54436123,3369.1,3369.0,0.00314739]
[1642013433976,2.84436123,3369.1,3369.0,0.00314739]
[1642013434377,2.54436123,3369.1,3369.0,0.00314739]
[1642013435417,0.1187,3369.6,3369.0,0.00314739]
[1642013436218,2.54425596,3369.5,3369.0,0.00314739]
[1642013436519,3.14425596,3369.5,3369.0,0.00314739]
[1642013436720,2.84425596,3369.5,3369.2,0.74186]
[1642013437118,2.84425596,3369.5,3369.3,0.00144212]
[1642013438719,2.54425596,3369.4,3369.3,0.00144212]
[1642013439878,5.59425596,3369.4,3369.3,0.00144212]
[1642013440478,6.81995596,3369.4,3369.3,0.00144212]
[1642013440685,6.93865596,3369.4,3369.0,0.00314739]
[1642013440880,0.7420031,3369.2,3369.0,0.00314739]
[1642013441077,1.0420031,3369.2,3369.0,0.00314739]
[1642013442078,10.10299384,3369.1,3369.0,0.00314739]
[1642013442477,10.10299384,3369.1,3368.1,1.48406]
[1642013442478,7.19207,3369.0,3368.1,1.48406]
[1642013442720,3.30299384,3368.9,3367.7,4.63221838]
[1642013442922,0.3,3368.8,3368.2,0.00454739]
[1642013443120,0.1187,3368.7,3368.2,0.00454739]
[1642013443518,0.1187,3368.7,3368.0,0.00568424]
[1642013443519,0.74216,3368.5,3368.0,0.00568424]
[1642013443719,2.6609127,3368.5,3367.8,0.00682108]
[1642013443919,0.3,3368.4,3367.8,0.00682108]
[1642013444322,1.4766,3368.5,3367.8,0.00682108]
[1642013444523,0.2746,3368.4,3367.8,0.00682108]
[1642013444724,0.2746,3368.4,3367.9,1.41305876]
[1642013445124,0.2746,3368.4,3368.0,0.00568424]
[1642013445726,2.54425596,3368.6,3368.0,0.74780424]
[1642013446125,2.54425596,3368.6,3368.1,0.00511581]
[1642013446326,2.54425596,3368.3,3368.1,0.00511581]
[1642013446569,2.54425596,3368.3,3368.0,0.00568424]
[1642013446570,3.51145596,3368.3,3368.0,0.00568424]
[1642013447773,3.51145596,3368.3,3368.1,0.74212]
[1642013447975,0.9672,3368.3,3368.1,0.74212]
[1642013448173,0.86083,3368.6,3368.1,0.74212]
[1642013448374,0.74213,3368.6,3368.1,0.74212]
[1642013449076,4.19534898,3368.5,3368.0,0.00568424]
[1642013449275,7.49053518,3368.5,3367.8,0.7422]
[1642013449477,0.0022737,3368.4,3367.8,0.7422]
[1642013449874,0.00170527,3368.3,3367.8,0.7422]
[1642013450318,0.00113685,3368.2,3367.8,0.7422]
[1642013450718,0.00170527,3368.3,3367.8,0.7422]
[1642013450917,0.00170527,3368.3,3367.9,1.10432509]
[1642013451123,2.6635562,3368.4,3367.9,1.10432509]
[1642013451124,0.00113685,3368.2,3367.9,1.10432509]
[1642013451321,0.00113685,3368.2,3368.0,0.74205]
[1642013451518,0.00170527,3368.3,3368.0,0.74205]
[1642013451918,0.00113685,3368.2,3368.0,0.74205]
[1642013452318,2.5448562,3368.4,3368.0,0.74205]
[1642013452319,0.00170527,3368.3,3368.0,0.74205]
[1642013452721,0.00113685,3368.2,3368.0,0.74205]
[1642013452919,0.00113685,3368.2,3368.0,0.69205]
[1642013453120,0.00170527,3368.3,3368.0,1.69205]
[1642013453318,0.00170527,3368.3,3368.0,0.69205]
[1642013453518,0.00113685,3368.2,3368.0,1.69205]
[1642013453723,0.00113685,3368.2,3368.0,0.69205]
[1642013453998,0.00341054,3368.6,3368.3,1.24954906]
[1642013454199,0.00341054,3368.6,3368.4,0.74201]
[1642013454399,0.00284212,3368.5,3368.4,0.74201]
[1642013454597,0.00284212,3368.5,3368.4,1.16701]
[1642013458130,2.5448562,3369.0,3368.4,1.16701]
[1642013458332,2.5448562,3369.0,3368.6,0.6676123]
[1642013458534,0.0022737,3368.9,3368.8,0.7418]
[1642013458732,0.0022737,3368.9,3368.8,1.1668]
[1642013460035,2.5448562,3369.1,3368.8,2.1668]
[1642013460235,2.5448562,3369.1,3369.0,0.74171]
[1642013460436,2.54094898,3369.1,3369.0,1.16671]
[1642013460636,2.54094898,3369.1,3369.0,2.16671]
[1642013460835,2.54094898,3369.1,3369.0,3.94030939]
[1642013461033,0.00113684,3369.1,3369.0,4.94030939]
[1642013463470,0.00113684,3369.1,3369.0,2.60210046]
[1642013463672,0.00113684,3369.1,3369.0,3.60210046]
[1642013466021,0.00113684,3369.1,3369.0,2.60210046]
[1642013466221,0.00113684,3369.1,3369.0,2.17710046]
[1642013466621,2.50113684,3369.1,3369.0,2.17710046]
[1642013467222,2.50113684,3369.1,3369.0,0.74171]
[1642013468524,0.00113684,3369.1,3369.0,2.15522162]
[1642013473428,0.5,3369.2,3369.0,5.88022162]
[1642013473631,0.5,3369.2,3369.0,6.48022162]
[1642013474027,2.27861097,3369.7,3369.1,3.6]
[1642013474232,2.27861097,3369.7,3369.6,2.23996827]
[1642013474434,2.27861097,3369.7,3369.6,2.66496827]
[1642013474631,2.27861097,3369.7,3369.6,3.66496827]
[1642013475232,2.27861097,3370.3,3369.6,3.66496827]
[1642013475433,2.27861097,3370.3,3369.8,0.6674042]
[1642013475636,0.00454739,3369.9,3369.8,0.6674042]
[1642013475838,0.00454739,3369.9,3369.5,1.4832]
[1642013476234,0.12267897,3369.8,3369.5,1.4832]
[1642013476666,0.00341054,3369.7,3369.6,0.74175]
[1642013476872,0.00341054,3369.7,3369.6,2.00830245]
[1642013477074,2.27861097,3370.5,3369.7,3.9]
[1642013477272,2.27861097,3370.5,3370.0,1.48297]
[1642013477475,2.27861097,3370.5,3370.1,1.12038964]
[1642013478072,2.27861097,3370.5,3370.1,2.12038964]
[1642013478073,2.27861097,3370.3,3370.1,2.12038964]
[1642013478274,2.27861097,3370.3,3370.2,1.53401482]
[1642013478673,2.27861097,3370.3,3370.2,2.53401482]
[1642013479074,2.27861097,3370.9,3370.2,2.53401482]
[1642013479274,2.27861097,3370.9,3370.4,1.48298]
[1642013480324,0.50888065,3370.8,3370.4,1.48298]
[1642013480724,0.50888065,3370.8,3370.5,0.74149]
[1642013481326,2.54369108,3370.7,3370.5,0.74149]
[1642013481726,0.00511581,3370.6,3370.5,0.74149]
[1642013483431,6.8,3370.5,3369.6,4.0647]
[1642013483632,8.33965432,3370.4,3369.6,3.6397]
[1642013483830,0.01289141,3369.9,3368.9,1.86709]
[1642013484072,0.03822065,3369.8,3369.6,1.48338]
[1642013484270,1.00619141,3369.9,3369.6,1.48338]
[1642013485074,0.74369141,3369.9,3369.6,1.48338]
[1642013485472,0.7308,3369.9,3369.6,1.48338]
[1642013486073,0.7308,3369.9,3369.6,2.48338]
[1642013486275,5.41578748,3369.8,3369.6,1.48338]
[1642013486477,6.36050888,3369.7,3369.4,0.74183]
[1642013486677,0.1187,3369.6,3369.4,0.74183]
[1642013486878,0.1187,3369.6,3369.5,0.00113684]
[1642013487077,3.22920888,3369.7,3369.5,0.00113684]
[1642013487279,5.77289996,3369.7,3369.5,0.00113684]
[1642013487476,3.25768381,3369.6,3369.3,0.00227369]
[1642013487730,0.1187,3369.5,3369.4,0.74184]
[1642013487923,0.1187,3369.6,3369.4,0.74184]
[1642013488120,0.1187,3369.6,3369.4,0.74354527]
[1642013488321,0.1187,3369.6,3369.5,0.00113684]
[1642013488728,2.66239108,3369.6,3369.5,0.00113684]
[1642013488927,2.54369108,3369.6,3369.5,0.00113684]
[1642013489529,2.54369108,3369.6,3369.5,0.42613684]
[1642013489732,1.51571609,3370.1,3369.9,1.39948002]
[1642013489927,1.51571609,3370.1,3369.8,0.74155]
[1642013490127,0.00170527,3370.0,3369.8,0.74155]
[1642013490540,0.00113685,3369.9,3369.8,1.93270084]
[1642013490927,0.00113685,3369.9,3369.8,2.93270084]
[1642013491570,0.00113685,3369.9,3369.8,4.34647657]
[1642013493671,3.8562,3370.3,3369.9,4.55]
[1642013493876,1.51571609,3370.7,3370.1,0.74146]
[1642013494078,1.51571609,3370.7,3370.2,0.425]
[1642013494276,1.51571609,3370.7,3370.3,0.425]
[1642013494475,2.64143282,3370.8,3370.4,0.425]
[1642013494677,2.64143282,3370.8,3370.6,1.53073416]
[1642013494876,2.64143282,3370.8,3370.6,2.27214416]
[1642013494877,0.00454739,3370.7,3370.6,2.27214416]
[1642013495625,0.00454739,3370.7,3370.6,0.61721]
[1642013496826,0.00454739,3370.7,3370.6,0.11721]
[1642013498128,0.1186,3371.1,3370.6,0.11721]
[1642013498324,4.9342,3371.2,3370.7,0.425]
[1642013498524,0.00170527,3371.0,3370.9,0.74126]
[1642013498727,1.51571609,3371.3,3370.9,2.70971937]
[1642013498974,0.1186,3371.5,3371.1,0.6671418]
[1642013499179,0.00113684,3371.2,3371.1,0.6671418]
[1642013499379,0.00227369,3371.4,3371.1,1.75464756]
[1642013499680,0.00170527,3371.3,3371.2,1.16624]
[1642013499880,4.15714891,3371.6,3371.2,1.20376879]
[1642013500080,4.15714891,3371.6,3371.3,2.149396]
[1642013500283,0.00113685,3371.5,3371.4,0.425]
[1642013500481,1.51571609,3371.9,3371.4,0.725]
[1642013500686,1.51571609,3371.9,3371.6,0.74114]
[1642013500980,0.00113684,3371.7,3371.6,0.74114]
[1642013501181,1.51571609,3371.9,3371.7,3.5327475]
[1642013501382,1.51571609,3371.9,3371.8,0.425]
[1642013501584,1.51571609,3371.9,3371.8,1.425]
[1642013501785,1.51685294,3371.9,3371.8,1.425]
[1642013502282,0.00113685,3371.9,3371.8,1.425]
[1642013502481,0.00113685,3371.9,3371.7,3.4812255]
[1642013502730,0.00113685,3371.9,3371.8,2.16611]
[1642013504135,0.00113685,3371.9,3371.8,1.16611]
[1642013504436,0.00113685,3371.9,3371.6,0.6670418]
[1642013504437,0.00113685,3371.9,3371.6,0.74135]
[1642013504734,0.1186,3371.8,3371.6,0.74135]
[1642013504932,0.00113685,3371.9,3371.6,0.74135]
[1642013505333,1.51685294,3371.9,3371.7,1.31881423]
[1642013505534,1.51685294,3371.9,3371.8,0.74127]
[1642013506588,1.51685294,3371.9,3371.6,3.0]
[1642013506788,0.00113685,3371.9,3371.6,3.0]
[1642013506988,0.00113685,3371.9,3371.7,0.6670238]
[1642013507590,0.00113685,3371.9,3371.8,1.53528484]
[1642013508391,0.00113685,3371.9,3371.8,2.83710716]
[1642013508595,0.00113685,3371.9,3371.8,3.83710716]
[1642013511127,0.00113685,3371.9,3371.7,1.4083438]
[1642013511327,5.5686,3371.8,3371.7,0.74132]
[1642013512923,0.1186,3371.8,3371.6,3.0]
[1642013513129,2.66127864,3371.8,3371.6,3.0]
[1642013514275,2.54267864,3371.7,3371.6,3.0]
[1642013514477,2.54267864,3371.7,3371.6,3.74133]
[1642013515476,2.54267864,3371.7,3371.6,3.0]
[1642013515675,2.66127864,3371.7,3371.6,3.0]
[1642013516075,8.31127864,3371.7,3371.6,3.0]
[1642013516777,5.7686,3371.7,3371.6,3.0]
[1642013516975,6.45,3371.6,3370.8,1.48287]
[1642013517176,0.7415,3371.4,3370.8,1.48287]
[1642013517374,0.7415,3371.4,3370.9,0.00454739]
[1642013517375,0.1186,3371.3,3370.9,0.00454739]
[1642013517818,0.1186,3371.3,3370.9,1.53206988]
[1642013518018,0.1186,3371.3,3371.0,0.74144]
[1642013518221,0.86007,3371.5,3371.0,0.74541896]
[1642013518417,0.4186,3371.5,3371.1,0.00341054]
[1642013518619,0.1186,3371.5,3371.1,0.00341054]
[1642013518820,0.1186,3371.5,3371.0,0.00397896]
[1642013519022,2.54267864,3371.2,3371.0,0.00397896]
[1642013519421,2.54267864,3371.2,3371.0,0.74146]
[1642013519822,2.54267864,3371.2,3370.8,1.48287]
[1642013519823,2.54267864,3371.2,3371.1,0.00341054]
[1642013520023,3.28416864,3371.4,3371.1,0.00341054]
[1642013520224,3.40276864,3371.4,3370.9,0.00454739]
[1642013520427,1.04151,3371.3,3370.9,0.00454739]
[1642013520627,1.04151,3371.3,3370.6,0.00625266]
[1642013520628,0.1186,3371.2,3370.6,0.00625266]
[1642013521124,0.1186,3371.2,3370.0,2.90016829]
[1642013521125,3.8937,3371.2,3370.0,2.90016829]
[1642013521570,3.8937,3371.2,3370.1,0.00909477]
[1642013521970,0.74165,3370.7,3370.2,0.74164]
[1642013522174,0.74168,3370.5,3370.1,0.00909477]
[1642013522374,0.74168,3370.5,3370.3,0.00795793]
[1642013522577,0.74168,3370.5,3369.9,0.01023162]
[1642013522774,0.1186,3370.8,3369.9,0.01023162]
[1642013522976,0.4186,3370.8,3369.9,0.01023162]
[1642013523174,2.54267864,3370.4,3370.0,2.70742079]
[1642013523376,2.54267864,3370.4,3370.0,1.53851662]
[1642013523675,2.54267864,3370.4,3370.2,0.74164]
[1642013524074,2.54267864,3370.4,3370.3,0.00795793]
[1642013524480,1.70285541,3370.4,3370.3,0.00795793]
[1642013524677,1.82145541,3370.4,3369.9,0.01023162]
[1642013524876,1.82145541,3370.4,3369.4,0.01307374]
[1642013524877,0.74184,3370.0,3369.4,0.01307374]
[1642013525238,2.64925541,3370.4,3370.3,2.13956]
[1642013525438,2.64925541,3370.4,3369.4,0.01307374]
[1642013525439,0.74187,3369.9,3369.4,0.01307374]
[1642013525626,1.48373,3370.0,3369.1,1.48363]
[1642013525828,2.2255923,3370.0,3369.1,1.48363]
[1642013526028,2.2255923,3370.0,3368.8,3.7156]
[1642013526029,0.74191,3369.7,3369.2,0.01421058]
[1642013526228,1.74301,3369.7,3369.2,0.01421058]
[1642013526429,1.74301,3369.7,3368.9,0.01591585]
[1642013526623,1.74301,3369.7,3369.0,0.13404743]
[1642013526827,1.74301,3369.7,3369.0,0.74193]
[1642013527027,1.74301,3369.7,3369.1,0.01477901]
[1642013527527,2.54267864,3369.6,3369.1,0.01477901]
[1642013528130,2.54267864,3369.6,3369.2,0.74188]
[1642013528528,2.54267864,3369.6,3369.3,0.01364216]
[1642013528978,2.54267864,3369.6,3369.1,0.01477901]
[1642013529178,2.54267864,3369.6,3369.4,0.74178]
[1642013529580,2.54267864,3369.6,3369.5,0.01250531]
[1642013529982,2.54267864,3370.0,3369.5,0.01250531]
[1642013530481,2.84267864,3370.0,3369.5,0.01250531]
[1642013530681,3.14267864,3370.0,3369.5,0.01250531]
[1642013530880,3.14267864,3370.0,3369.5,0.75431531]
[1642013531282,3.14267864,3370.0,3369.6,0.01193689]
[1642013531485,0.74183,3369.9,3369.6,0.01193689]
[1642013531697,0.74183,3369.9,3368.4,2.22548]